fUSD/lending_fUSD_20240813
["ID","MTS","AMOUNT","RATE_DAILY","PERIOD"]
[334785233,1723561763561,-1851.32748123,0.00011105,10]
[334785235,1723561769757,-408.65,9.657e-05,2]
[334785236,1723561769796,-624.61,9.665e-05,2]
[334785237,1723561769835,-300.0,9.677e-05,2]
[334785238,1723561769872,-300.0,9.677e-05,2]
[334785239,1723561769909,-1018.57037751,9.678e-05,2]
[334785240,1723561769959,-473.80962249,9.678e-05,2]
[334785241,1723561769996,-860.18,9.678e-05,2]
[334785242,1723561770037,-206.70454435,9.678e-05,2]
[334785243,1723561770076,-1111.13621067,9.678e-05,2]
[334785244,1723561770120,-1492.65688183,9.678e-05,2]
[334785245,1723561770168,-2651.83037751,9.678e-05,2]
[334785246,1723561770220,-2651.83037751,9.678e-05,2]
[334785249,1723561833747,-387.79790083,9.689e-05,2]
[334785250,1723561833813,-1110.46545919,9.689e-05,2]
[334785251,1723561833823,-10477.47,9.695e-05,2]
[334785252,1723561833833,-175.48,9.709e-05,2]
[334785253,1723561833842,-375.39,9.732e-05,2]
[334785254,1723561833852,-3010.80066874,9.79e-05,2]
[334785255,1723561833862,-5815.33146329,9.799e-05,2]
[334785256,1723561833874,-5333.66358004,9.799e-05,2]
[334785257,1723561833884,-150.99,9.799e-05,2]
[334785258,1723561833894,-499.99,9.799e-05,2]
[334785259,1723561833904,-649.77,9.799e-05,2]
[334785260,1723561833914,-150.0,9.799e-05,2]
[334785261,1723561833924,-981.3,9.8e-05,2]
[334785262,1723561833934,-150.99,9.8e-05,2]
[334785263,1723561833944,-224.52,9.807e-05,2]
[334785264,1723561833955,-2361.98,9.813e-05,2]
[334785265,1723561833965,-173.6,9.814e-05,2]
[334785266,1723561833975,-3589.77,9.814e-05,2]
[334785267,1723561833985,-299.99,9.873e-05,2]
[334785268,1723561833994,-13280.46701996,9.873e-05,2]
[334785269,1723561834006,-2200.45298004,9.873e-05,2]
[334785270,1723561834023,-6509.84,9.883e-05,2]
[334785271,1723561834032,-150.0,9.888e-05,2]
[334785272,1723561834042,-426.41,9.978e-05,2]
[334785273,1723561834054,-426.41,9.978e-05,2]
[334785274,1723561834065,-172.00237616,0.0001,2]
[334785275,1723561834074,-500.0,0.0001,2]
[334785276,1723561834084,-500.0,0.0001,2]
[334785278,1723561834094,-500.0,0.0001,2]
[334785280,1723561834104,-500.0,0.0001,2]
[334785282,1723561834115,-413.06895385,0.0001,2]
[334785284,1723561834126,-500.0,0.0001,2]
[334785285,1723561834136,-500.0,0.0001,2]
[334785286,1723561834146,-500.0,0.0001,2]
[334785287,1723561834157,-500.0,0.0001,2]
[334785288,1723561834167,-500.0,0.0001,2]
[334785289,1723561834177,-500.0,0.0001,2]
[334785290,1723561834187,-500.0,0.0001,2]
[334785291,1723561834196,-500.0,0.0001,2]
[334785292,1723561834206,-500.0,0.0001,2]
[334785293,1723561834216,-500.0,0.0001,2]
[334785294,1723561834225,-500.0,0.0001,2]
[334785295,1723561834235,-500.0,0.0001,2]
[334785296,1723561834244,-500.0,0.0001,2]
[334785297,1723561834254,-500.0,0.0001,2]
[334785298,1723561834269,-500.0,0.0001,2]
[334785299,1723561834278,-500.0,0.0001,2]
[334785300,1723561834288,-500.0,0.0001,2]
[334785301,1723561834298,-500.0,0.0001,2]
[334785302,1723561834308,-500.0,0.0001,2]
[334785303,1723561834318,-348.5,0.0001,2]
[334785304,1723561834327,-500.0,0.0001,2]
[334785305,1723561834337,-500.0,0.0001,2]
[334785306,1723561834346,-500.0,0.0001,2]
[334785307,1723561834356,-500.0,0.0001,2]
[334785308,1723561834366,-500.0,0.0001,2]
[334785309,1723561834530,-500.0,0.0001,2]
[334785310,1723561834540,-500.0,0.0001,2]
[334785311,1723561834550,-500.0,0.0001,2]
[334785312,1723561834559,-500.0,0.0001,2]
[334785313,1723561834569,-500.0,0.0001,2]
[334785314,1723561834579,-500.0,0.0001,2]
[334785315,1723561834589,-500.0,0.0001,2]
[334785316,1723561834598,-500.0,0.0001,2]
[334785317,1723561834608,-500.0,0.0001,2]
[334785318,1723561834617,-500.0,0.0001,2]
[334785319,1723561834627,-500.0,0.0001,2]
[334785320,1723561834636,-500.0,0.0001,2]
[334785321,1723561834646,-322.96,0.0001,2]
[334785322,1723561834655,-426.41,0.00010178,2]
[334785323,1723561834664,-178.81,0.00010199,2]
[334785324,1723561834672,-300.0,0.00010378,2]
[334785325,1723561834681,-342.96,0.00010378,2]
[334785326,1723561834691,-375.44,0.00010458,2]
[334785327,1723561834701,-696.2,0.00010628,2]
[334785328,1723561834710,-2500.0,0.0001067,2]
[334785329,1723561834720,-2500.0,0.0001067,2]
[334785330,1723561834730,-150.0,0.00010727,2]
[334785331,1723561834740,-150.0,0.00010732,2]
[334785332,1723561834750,-150.0,0.00010733,2]
[334785333,1723561834759,-150.0,0.00010733,2]
[334785334,1723561834772,-150.0,0.00010734,2]
[334785335,1723561834781,-150.0,0.00010734,2]
[334785336,1723561834791,-1500.0,0.00010735,2]
[334785337,1723561834800,-150.0,0.00010735,2]
[334785338,1723561834809,-1500.0,0.00010743,2]
[334785339,1723561834818,-1500.0,0.00010748,2]
[334785340,1723561834828,-150.0,0.00010751,2]
[334785341,1723561834838,-150.0,0.00010757,2]
[334785342,1723561834847,-150.0,0.00010757,2]
[334785343,1723561834856,-150.0,0.0001076,2]
[334785344,1723561834866,-150.0,0.00010761,2]
[334785345,1723561834876,-300.0,0.00010762,2]
[334785346,1723561834886,-150.0,0.00010762,2]
[334785347,1723561834896,-150.0,0.00010762,2]
[334785348,1723561834905,-150.0,0.00010765,2]
[334785349,1723561834915,-150.0,0.00010765,2]
[334785350,1723561834925,-150.0,0.00010774,2]
[334785351,1723561834934,-255.0,0.00010779,2]
[334785352,1723561834944,-150.0,0.00010782,2]
[334785353,1723561834954,-1500.0,0.00010785,2]
[334785354,1723561834964,-150.0,0.00010785,2]
[334785355,1723561834974,-1500.0,0.00010786,2]
[334785356,1723561834984,-150.0,0.00010791,2]
[334785357,1723561834993,-150.0,0.00010794,2]
[334785358,1723561835003,-150.0,0.00010796,2]
[334785359,1723561835016,-150.0,0.00010798,2]
[334785360,1723561835026,-3255.9473,0.00010798,2]
[334785361,1723561835037,-4289.745,0.00010798,2]
[334785362,1723561835047,-685.8488,0.00010798,2]
[334785363,1723561835057,-1500.0,0.00010799,2]
[334785364,1723561835066,-150.0,0.00010799,2]
[334785365,1723561835077,-297.45209096,0.00010807,2]
[334785366,1723561835086,-150.0,0.00010808,2]
[334785367,1723561835096,-300.0,0.00010814,2]
[334785368,1723561835105,-150.0,0.00010818,2]
[334785369,1723561835115,-150.0,0.00010824,2]
[334785370,1723561835124,-1500.0,0.00010826,2]
[334785371,1723561835133,-150.0,0.00010829,2]
[334785372,1723561835143,-150.0,0.00010833,2]
[334785373,1723561835153,-1500.0,0.00010834,2]
[334785374,1723561835162,-150.0,0.00010834,2]
[334785375,1723561835172,-150.0,0.00010838,2]
[334785376,1723561835182,-150.0,0.00010843,2]
[334785377,1723561835193,-289.0,0.00010848,2]
[334785378,1723561835202,-5134.0,0.00010848,2]
[334785379,1723561835212,-5842.0,0.00010848,2]
[334785380,1723561835222,-1673.0,0.00010848,2]
[334785381,1723561835232,-1298.016,0.00010848,2]
[334785382,1723561835241,-21759.0,0.00010848,2]
[334785383,1723561835251,-1500.0,0.00010849,2]
[334785384,1723561835261,-150.0,0.00010853,2]
[334785385,1723561835272,-150.0,0.00010861,2]
[334785386,1723561835282,-150.0,0.00010862,2]
[334785387,1723561835292,-150.0,0.00010868,2]
[334785388,1723561835301,-150.0,0.00010868,2]
[334785389,1723561835311,-624.61,0.00010873,2]
[334785390,1723561835321,-150.0,0.00010874,2]
[334785391,1723561835331,-150.0,0.0001088,2]
[334785392,1723561835341,-150.0,0.00010882,2]
[334785393,1723561835351,-150.0,0.00010883,2]
[334785394,1723561835361,-150.0,0.00010886,2]
[334785395,1723561835370,-1162.10919184,0.00010888,2]
[334785396,1723561835381,-153.18864,0.0001089,2]
[334785397,1723561835390,-150.0,0.0001089,2]
[334785398,1723561835400,-2499.3016,0.0001089,2]
[334785399,1723561835411,-1279.4,0.0001089,2]
[334785400,1723561835420,-150.0,0.00010897,2]
[334785401,1723561835429,-150.0,0.00010898,2]
[334785402,1723561835438,-392918.7369,0.00010898,2]
[334785403,1723561835449,-34708.5824,0.00010898,2]
[334785404,1723561835461,-150.0,0.00010899,2]
[334785405,1723561835470,-3000.0,0.000109,2]
[334785406,1723561835479,-5388.6698,0.000109,2]
[334785407,1723561835487,-184.62182622,0.000109,2]
[334785408,1723561835497,-7500.0,0.000109,2]
[334785409,1723561835506,-473.67958835,0.000109,2]
[334785410,1723561835519,-1335.03251104,0.000109,2]
[334785411,1723561835529,-3347.39750268,0.000109,2]
[334785412,1723561835539,-157.65936862,0.000109,2]
[334785413,1723561835549,-161.29938064,0.000109,2]
[334785414,1723561835558,-152.79080494,0.000109,2]
[334785415,1723561835567,-1500.0,0.00010901,2]
[334785416,1723561835576,-150.0,0.00010904,2]
[334785417,1723561835586,-1500.0,0.00010905,2]
[334785418,1723561835595,-1500.0,0.00010907,2]
[334785419,1723561835606,-150.0,0.00010909,2]
[334785420,1723561835616,-150.0,0.00010911,2]
[334785421,1723561835626,-150.0,0.00010915,2]
[334785422,1723561835635,-150.0,0.00010917,2]
[334785423,1723561835645,-150.0,0.00010918,2]
[334785424,1723561835654,-300.0,0.00010918,2]
[334785425,1723561835664,-150.0,0.00010919,2]
[334785426,1723561835673,-175.48,0.00010923,2]
[334785427,1723561835683,-150.0,0.00010923,2]
[334785428,1723561835692,-150.0,0.00010924,2]
[334785429,1723561835702,-150.0,0.00010932,2]
[334785430,1723561835711,-150.0,0.00010935,2]
[334785431,1723561835721,-150.0,0.00010936,2]
[334785432,1723561835731,-150.0,0.00010937,2]
[334785433,1723561835741,-150.0,0.00010942,2]
[334785434,1723561835751,-150.0,0.00010943,2]
[334785435,1723561835760,-1500.0,0.00010948,2]
[334785436,1723561835772,-375.39,0.00010948,2]
[334785437,1723561835782,-150.0,0.00010951,2]
[334785438,1723561835792,-835.42,0.00010952,2]
[334785439,1723561835802,-835.42,0.00010952,2]
[334785440,1723561835811,-835.42,0.00010952,2]
[334785441,1723561835821,-835.42,0.00010952,2]
[334785442,1723561835831,-835.42,0.00010952,2]
[334785443,1723561835841,-150.0,0.00010956,2]
[334785444,1723561835850,-150.0,0.00010957,2]
[334785445,1723561835860,-343.62439536,0.00010958,2]
[334785446,1723561835870,-1000.0,0.00010959,2]
[334785447,1723561835879,-20.2140805,0.00010959,2]
[334785448,1723561835892,-979.7859195,0.00010959,2]
[334785449,1723561835901,-1000.0,0.00010959,2]
[334785450,1723561835911,-1000.0,0.00010959,2]
[334785451,1723561835920,-1000.0,0.00010959,2]
[334785452,1723561835929,-1000.0,0.00010959,2]
[334785453,1723561835938,-1000.0,0.00010959,2]
[334785454,1723561835948,-1000.0,0.00010959,2]
[334785455,1723561835957,-1000.0,0.00010959,2]
[334785456,1723561835966,-1000.0,0.00010959,2]
[334785457,1723561835975,-1000.0,0.00010959,2]
[334785458,1723561835984,-1000.0,0.00010959,2]
[334785459,1723561835994,-1000.0,0.00010959,2]
[334785460,1723561836003,-250.0,0.00010959,2]
[334785461,1723561836013,-2000.0,0.00010959,2]
[334785462,1723561836026,-5575.04,0.00010959,2]
[334785463,1723561836040,-780.36,0.00010959,2]
[334785464,1723561836049,-150.0,0.00010959,2]
[334785465,1723561836060,-150.0,0.00010961,2]
[334785466,1723561836069,-1500.0,0.00010963,2]
[334785467,1723561836079,-300.0,0.00010967,2]
[334785468,1723561836088,-150.0,0.00010968,2]
[334785469,1723561836099,-1000.0,0.0001097,2]
[334785470,1723561836108,-1000.0,0.0001097,2]
[334785471,1723561836118,-1000.0,0.0001097,2]
[334785472,1723561836128,-1000.0,0.0001097,2]
[334785473,1723561836137,-1000.0,0.0001097,2]
[334785474,1723561836147,-1059.18883003,0.0001097,2]
[334785475,1723561836156,-500.0,0.0001097,2]
[334785476,1723561836167,-500.0,0.0001097,2]
[334785477,1723561836177,-500.0,0.0001097,2]
[334785478,1723561836186,-500.0,0.0001097,2]
[334785479,1723561836196,-704.74285089,0.0001097,2]
[334785480,1723561836205,-1000.0,0.0001097,2]
[334785481,1723561836215,-500.0,0.0001097,2]
[334785482,1723561836225,-200.0,0.00010973,2]
[334785483,1723561836235,-150.0,0.00010974,2]
[334785484,1723561836244,-150.0,0.00010976,2]
[334785485,1723561836254,-1500.0,0.00010979,2]
[334785486,1723561836266,-150.0,0.00010982,2]
[334785487,1723561836276,-1075.0,0.00010994,2]
[334785488,1723561836285,-329.91768477,0.00010995,2]
[334785489,1723561836295,-2639.34147816,0.00010997,2]
[334785490,1723561836305,-91920.9594677,0.00010998,2]
[334785491,1723561836315,-150.01,0.00010999,2]
[334785492,1723561836324,-17447.77626895,0.00011,2]
[334785493,1723561836336,-347.96815075,0.00011,2]
[334785494,1723561836348,-704.92261432,0.00011,2]
[334785495,1723561836360,-2332.32978955,0.00011,2]
[334785496,1723561836372,-713.07366266,0.00011,2]
[334785497,1723561836483,-893.59727248,0.00011,2]
[334785498,1723561836507,-42198.917706,0.00011,2]
[334785499,1723561836521,-250.0,0.00011,2]
[334785500,1723561836533,-432.92,0.00011,2]
[334785501,1723561836544,-1521.76221221,0.00011,2]
[334785502,1723561836556,-3487.45282919,0.00011,2]
[334785503,1723561836567,-3132.3393828,0.00011,2]
[334785504,1723561836578,-500.0,0.00011,2]
[334785505,1723561836589,-372.02812264,0.00011,2]
[334785506,1723561836599,-2541.54129521,0.00011,2]
[334785507,1723561836621,-386.9038105,0.00011,2]
[334785508,1723561836632,-3164.75000067,0.00011,2]
[334785509,1723561836643,-47848.75106056,0.00011,2]
[334785510,1723561836654,-919.70999,0.00011,2]
[334785511,1723561836665,-404.4999995,0.00011,2]
[334785512,1723561836676,-19085.47228301,0.00011,2]
[334785513,1723561836687,-56968.91074779,0.00011,2]
[334785514,1723561836698,-596.79,0.00011,2]
[334785515,1723561838470,-817.15530766,0.00011,2]
[334785516,1723561838481,-1989.47898931,0.00011,2]
[334785517,1723561838492,-5011.47025898,0.00011,2]
[334785519,1723561838504,-1044.62063914,0.00011,2]
[334785521,1723561838517,-2515.47398675,0.00011,2]
[334785525,1723561838559,-301.88026204,0.00011,2]
[334785526,1723561838568,-22231.12920094,0.00011,2]
[334785527,1723561838580,-4654.96312475,0.00011,2]
[334785528,1723561838591,-325.88,0.00011,2]
[334785529,1723561838601,-1427.25349251,0.00011,2]
[334785530,1723561838612,-8371.46006251,0.00011,2]
[334785531,1723561838659,-253.7732008,0.00011,2]
[334785532,1723561838671,-8208.53520196,0.00011,2]
[334785533,1723561838682,-1032.41406213,0.00011,2]
[334785534,1723561838890,-618.74932003,0.00011,2]
[334785536,1723561838901,-16182.84950419,0.00011,2]
[334785537,1723561838911,-2118.48446416,0.00011,2]
[334785598,1723561840443,-346.5263054,0.00010798,2]
[334785600,1723561840454,-1526.7736946,0.00011,2]
[334785610,1723561840597,-334.85641814,0.00011,2]
[334785611,1723561840609,-10114.15909603,0.00011,2]
[334785612,1723561840621,-613.41736907,0.00011,2]
[334785613,1723561840633,-6206.23636126,0.00011,2]
[334785614,1723561840644,-299.235,0.00011,2]
[334785615,1723561840656,-3868.2,0.00011,2]
[334785616,1723561840683,-449.03088406,0.00011,2]
[334785617,1723561840695,-685.08301683,0.00011,2]
[334785618,1723561840706,-582.27256892,0.00011,2]
[334785619,1723561840717,-3504.1443,0.00011,2]
[334785620,1723561840729,-3705.05,0.00011,2]
[334785621,1723561840740,-15237.17741995,0.00011,2]
[334785622,1723561840751,-4302.89567398,0.00011,2]
[334785623,1723561840763,-25517.80297432,0.00011,2]
[334785624,1723561840778,-1568.29552831,0.00011,2]
[334785625,1723561840789,-3044.60170628,0.00011,2]
[334785626,1723561840801,-1367.76559331,0.00011,2]
[334785627,1723561840812,-1115.35694092,0.00011,2]
[334785628,1723561840823,-722.19529931,0.00011,2]
[334785629,1723561840835,-322.56152394,0.00011,2]
[334785630,1723561840870,-1072.66280005,0.00011,2]
[334785631,1723561840881,-40537.777049,0.00011,2]
[334785632,1723561840892,-1642.67230974,0.00011,2]
[334785646,1723561843463,-1076.0,0.00010848,2]
[334785648,1723561843473,-13442.19882609,0.00011,2]
[334785767,1723561844680,-1079.31918,0.00011,2]
[334785769,1723561844695,-405.59229244,0.00011,2]
[334785772,1723561844720,-265.6000002,0.00011,2]
[334785775,1723561844744,-653.31270692,0.00011,2]
[334785779,1723561844781,-377.11693109,0.00011,2]
[334785938,1723561846746,-522.01898272,0.0001078,2]
[334785940,1723561846757,-613.16375637,0.0001078,2]
[334785942,1723561846767,-740.34437268,0.00011,2]
[334785944,1723561846780,-225.65562732,0.00011,2]
[334785946,1723561846790,-3143.12801638,0.00011,2]
[334785948,1723561846802,-644.28818466,0.00011,2]
[334785951,1723561846814,-637.525,0.00011,2]
[334785953,1723561846826,-360.28985262,0.00011,2]
[334785955,1723561846838,-343.53915486,0.00011,2]
[334785957,1723561846849,-867888.6535547,0.00011,2]
[334785959,1723561846860,-1900.0,0.00011,2]
[334785962,1723561846872,-300.0,0.00011,2]
[334785964,1723561846883,-6271.4,0.00011,2]
[334785966,1723561846895,-1065.75931563,0.00011,2]
[334785968,1723561846906,-1138.65459664,0.00011,2]
[334785970,1723561846918,-1250.0945842,0.00011,2]
[334785973,1723561846929,-2218.84058109,0.00011,2]
[334785975,1723561846940,-24236.90631123,0.00011,2]
[334785977,1723561846952,-16744.559,0.00011,2]
[334785979,1723561846963,-3490.9987,0.00011,2]
[334785982,1723561846978,-2366.29051615,0.00011,2]
[334785984,1723561846991,-973.24910627,0.00011,2]
[334785988,1723561847015,-859.71593629,0.00011,2]
[334785990,1723561847027,-5470.75585234,0.00011,2]
[334785992,1723561847038,-76852.45257324,0.00011,2]
[334786209,1723561873327,151.77,0.00017911,120]
[334786210,1723561873416,150.5,0.00017911,120]
[334786211,1723561873770,150.5,0.00017911,120]
[334786212,1723561873898,150.5,0.00017901,120]
[334786213,1723561874277,150.5,0.00017901,120]
[334786214,1723561874411,150.5,0.00017891,120]
[334786215,1723561874762,150.5,0.00017891,120]
[334786216,1723561874904,150.5,0.00021985,120]
[334786217,1723561875241,160.33,0.00021985,120]
[334786218,1723561875370,150.5,0.00021975,120]
[334786219,1723561875844,150.5,0.00021965,120]
[334786220,1723561876350,201.63,0.00022778,120]
[334786224,1723562575771,359.69,8.219e-05,2]
[334786287,1723563031467,-300.0,9.893e-05,2]
[334786288,1723563031477,-17787.9,9.894e-05,2]
[334786290,1723563031492,-250.0,9.932e-05,2]
[334786292,1723563031502,-550.0,0.0001,2]
[334786294,1723563031512,-418.18087454,0.0001,2]
[334786295,1723563031522,-3480.00499735,0.0001,2]
[334786296,1723563031531,-408.65,0.00010054,2]
[334786297,1723563031541,-733.46,0.00010085,2]
[334786298,1723563031551,-1000.0,0.00010141,2]
[334786299,1723563031561,-191.82,0.00010153,2]
[334786300,1723563031571,-6742.0,0.00010338,2]
[334786301,1723563031580,-499.99,0.00010338,2]
[334786302,1723563031590,-348.87,0.00010429,2]
[334786303,1723563031600,-359.69,0.00010476,2]
[334786304,1723563031609,-178.67,0.00010533,2]
[334786305,1723563031618,-2500.0,0.00010698,2]
[334786306,1723563031628,-1093.73703832,0.0001078,2]
[334786307,1723563031637,-201.26135232,0.00010797,2]
[334786308,1723563031647,-150.0,0.00010797,2]
[334786309,1723563031656,-92221.9226,0.00010798,2]
[334786310,1723563031666,-1047.5599,0.00010798,2]
[334786311,1723563031675,-5974.02,0.00010798,2]
[334786312,1723563031685,-1938.7076,0.000108,2]
[334786313,1723563031695,-420.0,0.00010882,2]
[334786314,1723563031704,-2500.0,0.0001089,2]
[334786315,1723563031717,-3827.75318192,0.00010899,2]
[334786316,1723563031726,-4794.2461,0.000109,2]
[334786317,1723563031736,-3000.0,0.000109,2]
[334786318,1723563031746,-7500.0,0.000109,2]
[334786319,1723563031755,-414.46963978,0.000109,2]
[334786320,1723563031765,-890.02167402,0.000109,2]
[334786321,1723563031774,-4131.51214528,0.000109,2]
[334786322,1723563031783,-999.99,0.00010959,2]
[334786323,1723563031793,-150.0,0.00010959,2]
[334786324,1723563031803,-250.0,0.00010959,2]
[334786325,1723563031812,-2000.0,0.00010959,2]
[334786326,1723563031823,-150.0,0.0001098,2]
[334786327,1723563031832,-1137.0,0.0001098,2]
[334786328,1723563031842,-446.0,0.0001098,2]
[334786329,1723563031852,-877.092,0.0001098,2]
[334786330,1723563031869,-556.0,0.0001098,2]
[334786331,1723563031879,-2031.463,0.0001098,2]
[334786332,1723563031888,-207.23,0.0001098,2]
[334786333,1723563031897,-551.0,0.0001098,2]
[334786334,1723563031908,-271.983,0.0001098,2]
[334786335,1723563031918,-382.355,0.0001098,2]
[334786336,1723563031928,-3291.0,0.0001098,2]
[334786337,1723563031939,-1178.0,0.0001098,2]
[334786338,1723563031949,-1076.0,0.0001098,2]
[334786339,1723563031961,-1257.0,0.0001098,2]
[334786340,1723563031972,-5842.0,0.0001098,2]
[334786341,1723563031982,-622.0,0.0001098,2]
[334786342,1723563031991,-1542.0,0.0001098,2]
[334786343,1723563032001,-5134.0,0.0001098,2]
[334786344,1723563032010,-1924.0,0.0001098,2]
[334786345,1723563032019,-130699.1390011,0.0001099,2]
[334786346,1723563032118,-283.58328289,0.0001099,2]
[334786347,1723563032130,-384.68379587,0.0001099,2]
[334786348,1723563032146,-1096.62478645,0.0001099,2]
[334786349,1723563032157,-602.93568449,0.0001099,2]
[334786350,1723563032168,-399.20391486,0.0001099,2]
[334786351,1723563032184,-484.32,0.0001099,2]
[334786352,1723563032195,-503.022718,0.0001099,2]
[334786353,1723563032210,-300.0,0.0001099,2]
[334786354,1723563032221,-602.886052,0.0001099,2]
[334786355,1723563032242,-155563.68714855,0.0001099,2]
[334786356,1723563032251,-1008.0,0.00011,2]
[334786357,1723563032260,-2835.43686615,0.00011,2]
[334786358,1723563032272,-587.636628,0.00011,2]
[334786386,1723563037681,-289.0,0.0001098,2]
[334786387,1723563037691,-236.66221092,0.00011,2]
[334786388,1723563037702,-9881.99222486,0.00011,2]
[334786389,1723563037718,-7768.1384,0.00011,2]
[334786391,1723563037729,-7146.2938,0.00011,2]
[334786392,1723563037741,-17006.65070178,0.00011,2]
[334786393,1723563037751,-596.18,0.00011,2]
[334786394,1723563037763,-678.64593533,0.00011,2]
[334786395,1723563037774,-2721.58689066,0.00011,2]
[334786396,1723563037786,-2855.0,0.00011,2]
[334786397,1723563037797,-347.11103298,0.00011,2]
[334786398,1723563037821,-1258.75000001,0.00011,2]
[334786399,1723563037832,-300.12360116,0.00011,2]
[334786400,1723563037844,-383.47949626,0.00011,2]
[334786409,1723563039664,-2231.59833512,0.000109,2]
[334786410,1723563039673,-3614.94109232,0.00011,2]
[334786411,1723563039683,-98093.45392909,0.00011,2]
[334786412,1723563039699,-1815.22823949,0.00011,2]
[334786413,1723563039715,-358.48667185,0.00011,2]
[334786414,1723563039726,-312.00178581,0.00011,2]
[334786415,1723563039737,-554.26539974,0.00011,2]
[334786416,1723563040020,-2347.58158213,0.00011,2]
[334786417,1723563040032,-4432.26839026,0.00011,2]
[334786418,1723563040043,-3024.61252761,0.00011,2]
[334786419,1723563040054,-1192.364174,0.00011,2]
[334786420,1723563040065,-300.59930483,0.00011,2]
[334786421,1723563040076,-530.37784572,0.00011,2]
[334786422,1723563040088,-220619.47827044,0.00011,2]
[334786423,1723563040099,-42360.80458059,0.00011,2]
[334786424,1723563040110,-2982.98,0.00011,2]
[334786425,1723563040132,-92339.98351137,0.00011,2]
[334786427,1723563040143,-286.4,0.00011,2]
[334786429,1723563040154,-1651.42843311,0.00011,2]
[334786638,1723563042597,-594.98517338,0.0001098,2]
[334786652,1723563042713,-438.75945589,0.0001098,2]
[334786655,1723563042726,-170.25537073,0.0001098,2]
[334786659,1723563042735,-902.0,0.00011,2]
[334786661,1723563042745,-3627.74462925,0.00011,2]
[334786688,1723563043820,-1700.6,0.00011,2]
[334786689,1723563043831,-623.25,0.00011,2]
[334786690,1723563043842,-427.149998,0.00011,2]
[334786691,1723563043854,-1651.68579238,0.00011,2]
[334786692,1723563043869,-827.19049739,0.00011,2]
[334786693,1723563043880,-715.43335499,0.00011,2]
[334786694,1723563043892,-300.58999999,0.00011,2]
[334786695,1723563043903,-4330.59626476,0.00011,2]
[334786696,1723563043914,-1637.0841609,0.00011,2]
[334786697,1723563043992,323.72,9.612e-05,2]
[334786698,1723563044022,-391.98857374,0.00011,2]
[334786699,1723563044034,-1070.20960904,0.00011,2]
[334786700,1723563044045,-547.46957672,0.00011,2]
[334786701,1723563044056,-11959.56,0.00011,2]
[334786702,1723563044067,-6204.60000004,0.00011,2]
[334786703,1723563044078,-760.21,0.00011,2]
[334786708,1723563045767,-1027.23231092,0.00011,2]
[334786709,1723563045779,-349.99877428,0.00011,2]
[334786710,1723563045800,-7359.193961,0.0001098,2]
[334786711,1723563045812,-1069.19252002,0.0001098,2]
[334786712,1723563045944,-13330.61351898,0.0001098,2]
[334786713,1723563045953,-42643.37732655,0.00011,2]
[334786714,1723563045965,-58111.80855634,0.00011,2]
[334786715,1723563045978,-603.16166683,0.00011,2]
[334786716,1723563045989,-1000.0,0.00011,2]
[334786717,1723563046000,-1235.87774031,0.00011,2]
[334786995,1723563126250,2629.60012596,9.793e-05,2]
[334786996,1723563126291,1947.79347404,9.793e-05,2]
[334786999,1723563630126,315.04,8.219e-05,2]
[334787004,1723563760590,165.64480364,9.795e-05,2]
[334787005,1723563760637,2491.81047161,9.795e-05,2]